bitfinex/quotes_BTCUSD_20220731
["timestamp","ask_amount","ask_price","bid_price","bid_amount"]
[1659235549149,0.079,23767.0,23766.0,0.79345237]
[1659235549351,0.79325733,23773.0,23766.0,0.76272082]
[1659235549568,0.82486733,23773.0,23766.0,0.45930782]
[1659235549783,0.79325733,23773.0,23766.0,0.45930782]
[1659235549997,0.061,23767.0,23766.0,0.45930782]
[1659235550237,0.061,23767.0,23766.0,0.79345237]
[1659235551166,1.04752587,23773.0,23766.0,0.79345237]
[1659235551413,1.04752587,23773.0,23766.0,0.49003937]
[1659235552080,0.40725733,23772.0,23766.0,0.05205049]
[1659235552513,0.40725733,23772.0,23766.0,0.03940701]
[1659235553920,0.48625733,23772.0,23766.0,0.03940701]
[1659235555203,0.40725733,23772.0,23766.0,0.03940701]
[1659235556091,0.48625733,23772.0,23766.0,0.03940701]
[1659235557221,0.53625733,23772.0,23766.0,0.03940701]
[1659235557430,0.45725733,23772.0,23763.0,0.88314348]
[1659235557645,0.45725733,23772.0,23764.0,0.40725733]
[1659235557646,0.40725733,23772.0,23764.0,0.40725733]
[1659235558009,0.48525733,23772.0,23764.0,0.44666434]
[1659235558255,0.48525733,23772.0,23765.0,0.3]
[1659235558884,0.48525733,23772.0,23770.0,0.03940701]
[1659235558885,0.078,23772.0,23770.0,0.03940701]
[1659235559097,0.078,23772.0,23771.0,0.33414455]
[1659235559352,0.6,23779.0,23773.0,0.03940701]
[1659235559557,0.40725733,23778.0,23773.0,0.03940701]
[1659235559785,0.41749242,23778.0,23773.0,0.24962301]
[1659235560004,0.6214,23783.0,23773.0,0.24962301]
[1659235560005,0.6214,23783.0,23775.0,0.03940701]
[1659235560220,0.40725733,23782.0,23775.0,0.03940701]
[1659235560639,0.079,23779.0,23775.0,0.03940701]
[1659235560911,0.05394161,23778.0,23776.0,0.03073155]
[1659235561124,0.08923509,23779.0,23775.0,0.03940701]
[1659235561377,0.08923509,23779.0,23770.0,0.5507]
[1659235561378,0.40725733,23778.0,23770.0,0.5507]
[1659235561580,0.43885733,23778.0,23770.0,0.5507]
[1659235561824,0.40725733,23777.0,23770.0,0.8507]
[1659235563652,0.40725733,23777.0,23770.0,0.5507]
[1659235564062,0.48725733,23777.0,23770.0,0.5507]
[1659235564186,0.40725733,23776.0,23770.0,0.5507]
[1659235564617,0.40725733,23776.0,23770.0,0.8507]
[1659235565059,0.40725733,23776.0,23770.0,0.5507]
[1659235566018,0.48625733,23776.0,23772.0,0.03940701]
[1659235566226,0.00394161,23775.0,23772.0,0.03940701]
[1659235566437,0.00394161,23775.0,23773.0,0.03073155]
[1659235566896,0.00394161,23775.0,23772.0,0.03940701]
[1659235567309,0.40725733,23776.0,23773.0,0.03073155]
[1659235567517,0.01015171,23775.0,23773.0,0.03073155]
[1659235567951,0.01015171,23775.0,23773.0,0.04337503]
[1659235567952,0.05,23775.0,23773.0,0.04337503]
[1659235568163,0.48625733,23776.0,23775.0,0.03940701]
[1659235568164,0.079,23776.0,23775.0,0.03940701]
[1659235568818,0.079,23776.0,23775.0,0.34282001]
[1659235569276,0.8472,23782.0,23775.0,0.34282001]
[1659235569510,0.40725733,23781.0,23775.0,0.03940701]
[1659235569997,0.3,23780.0,23775.0,0.03940701]
[1659235570208,0.70725733,23780.0,23775.0,0.03940701]
[1659235572029,0.78625733,23780.0,23775.0,0.03940701]
[1659235573163,0.70725733,23780.0,23775.0,0.03940701]
[1659235574085,0.78625733,23780.0,23775.0,0.03940701]
[1659235574758,0.79640904,23780.0,23775.0,0.03940701]
[1659235574984,0.379,23780.0,23775.0,0.03940701]
[1659235575200,0.3,23780.0,23775.0,0.03940701]
[1659235575646,0.05,23779.0,23775.0,0.03940701]
[1659235575873,0.38415171,23780.0,23776.0,0.03073155]
[1659235576100,0.00394161,23779.0,23776.0,0.03073155]
[1659235576324,0.00909332,23779.0,23775.0,0.03940701]
[1659235576761,0.00394161,23779.0,23775.0,0.03940701]
[1659235576986,0.05,23778.0,23775.0,0.03940701]
[1659235577230,0.00909332,23779.0,23775.0,0.03940701]
[1659235577535,0.05,23778.0,23775.0,0.03940701]
[1659235577717,0.00394161,23779.0,23776.0,0.03073155]
[1659235577977,0.08294161,23779.0,23775.0,0.03940701]
[1659235578388,0.08809332,23779.0,23775.0,0.03940701]
[1659235578811,0.08294161,23779.0,23775.0,0.03940701]
[1659235579257,0.08809332,23779.0,23775.0,0.03940701]
[1659235579708,0.00394161,23779.0,23775.0,0.03940701]
[1659235579936,0.08294161,23779.0,23775.0,0.03940701]
[1659235581031,0.49019894,23779.0,23775.0,0.03940701]
[1659235581261,0.41119894,23779.0,23775.0,0.03940701]
[1659235581939,0.49019894,23779.0,23775.0,0.03940701]
[1659235582422,0.49019894,23779.0,23776.0,0.03073155]
[1659235582639,0.08809332,23779.0,23775.0,0.03940701]
[1659235583286,0.00909332,23779.0,23775.0,0.03940701]
[1659235583517,0.5472,23782.0,23776.0,0.03073155]
[1659235583772,0.40725733,23781.0,23776.0,0.03073155]
[1659235584001,0.079,23779.0,23776.0,0.03073155]
[1659235584436,0.01059299,23777.0,23773.0,0.5635]
[1659235584674,0.41785032,23777.0,23769.0,0.608]
[1659235584888,0.41785032,23777.0,23769.0,1.01525733]
[1659235584889,0.61756433,23776.0,23769.0,1.01525733]
[1659235585121,0.40725733,23776.0,23770.0,0.303413]
[1659235585420,0.40725733,23776.0,23769.0,0.40725733]
[1659235585976,0.44325733,23776.0,23769.0,0.40725733]
[1659235586410,0.44325733,23776.0,23770.0,0.3]
[1659235587009,0.44325733,23776.0,23769.0,0.40725733]
[1659235587238,0.40725733,23776.0,23769.0,0.40725733]
[1659235587878,0.48625733,23776.0,23769.0,0.40725733]
[1659235588552,0.48625733,23776.0,23770.0,0.3]
[1659235588917,0.48625733,23776.0,23769.0,0.40725733]
[1659235589143,0.40725733,23776.0,23769.0,0.40725733]
[1659235589556,0.40725733,23776.0,23770.0,0.303413]
[1659235589818,0.40725733,23776.0,23769.0,0.74725863]
[1659235590049,0.48625733,23776.0,23770.0,0.603413]
[1659235590286,0.48625733,23776.0,23770.0,0.3]
[1659235591375,0.40725733,23776.0,23770.0,0.3]
[1659235592113,0.80355733,23778.0,23771.0,0.40725733]
[1659235592331,0.079,23776.0,23771.0,0.40725733]
[1659235592542,0.079,23776.0,23772.0,0.03940701]
[1659235592686,0.079,23776.0,23773.0,0.03073155]
[1659235593384,0.079,23776.0,23773.0,0.0306589]
[1659235593617,0.80355733,23778.0,23773.0,0.0306589]
[1659235593814,0.80355733,23778.0,23772.0,0.03940701]
[1659235594009,0.079,23776.0,23772.0,0.03940701]
[1659235594990,0.05,23775.0,23772.0,0.03940701]
[1659235595368,0.079,23776.0,23772.0,0.03940701]
[1659235595776,0.08415171,23776.0,23772.0,0.03940701]
[1659235595897,0.08415171,23775.0,23772.0,0.03940701]
[1659235596101,0.079,23775.0,23772.0,0.03940701]
[1659235596314,0.079,23775.0,23773.0,0.0306589]
[1659235596535,0.079,23775.0,23772.0,0.03940701]
[1659235596994,0.08301426,23775.0,23772.0,0.03940701]
[1659235597207,0.80355733,23778.0,23772.0,0.03940701]
[1659235597656,0.0423,23781.0,23775.0,0.03940701]
[1659235597891,0.9709,23784.0,23776.0,0.40725733]
[1659235598131,0.40725733,23783.0,23778.0,0.03940701]
[1659235598366,0.41240904,23783.0,23778.0,0.03940701]
[1659235598793,0.41240904,23783.0,23778.0,0.03904301]
[1659235599014,0.41240904,23783.0,23779.0,0.303413]
[1659235599238,0.41240904,23783.0,23778.0,0.03904301]
[1659235599866,0.49240904,23783.0,23778.0,0.03904301]
[1659235601237,0.41240904,23783.0,23778.0,0.03904301]
[1659235601910,0.49240904,23783.0,23778.0,0.03904301]
[1659235603199,0.41240904,23783.0,23778.0,0.03904301]
[1659235603870,0.49240904,23783.0,23778.0,0.03904301]
[1659235605261,0.41240904,23783.0,23778.0,0.03904301]
[1659235606850,0.49240904,23783.0,23779.0,0.303413]
[1659235607045,0.00401426,23782.0,23778.0,0.03904301]
[1659235607487,0.00916597,23782.0,23778.0,0.03904301]
[1659235607716,0.00401426,23782.0,23779.0,0.0306589]
[1659235607944,0.08401426,23782.0,23779.0,0.0306589]
[1659235608234,0.08,23782.0,23779.0,0.0306589]
[1659235608663,0.08515171,23782.0,23779.0,0.0306589]
[1659235609330,0.00515171,23782.0,23779.0,0.0306589]
[1659235609521,0.41425258,23785.0,23779.0,0.0306589]
[1659235609740,0.40725733,23784.0,23779.0,0.0306589]
[1659235610405,0.40725733,23784.0,23778.0,0.03904301]
[1659235611286,0.08,23782.0,23778.0,0.03904301]
[1659235611510,0.08515171,23782.0,23779.0,0.0306589]
[1659235611875,0.16,23782.0,23779.0,0.0306589]
[1659235612136,0.16515171,23782.0,23779.0,0.0306589]
[1659235612567,0.40725733,23784.0,23779.0,0.0306589]
[1659235612910,0.40725733,23784.0,23778.0,0.03904301]
[1659235613986,0.48725733,23784.0,23778.0,0.03904301]
[1659235615014,0.48725733,23784.0,23778.0,0.02852954]
[1659235615159,0.40725733,23784.0,23778.0,0.02852954]
[1659235616048,0.48725733,23784.0,23778.0,0.02852954]
[1659235617104,0.40725733,23784.0,23778.0,0.02852954]
[1659235617885,0.48725733,23784.0,23778.0,0.02852954]
[1659235618883,0.48725733,23784.0,23781.0,0.02852954]
[1659235619121,0.00401426,23783.0,23781.0,0.02852954]
[1659235619553,0.55,23782.0,23781.0,0.02852954]
[1659235619598,0.6,23782.0,23781.0,0.02852954]
[1659235619764,0.5,23782.0,23781.0,0.02852954]
[1659235620182,0.08916597,23783.0,23781.0,0.02852954]
[1659235620437,0.4,23782.0,23781.0,0.02852954]
[1659235620548,0.08401426,23783.0,23781.0,0.02852954]
[1659235621209,0.00401426,23783.0,23781.0,0.02852954]
[1659235621508,0.40725733,23784.0,23781.0,0.05918844]
[1659235621721,0.00401426,23783.0,23781.0,0.02852954]
[1659235621942,0.08401426,23783.0,23781.0,0.02852954]
[1659235622183,0.08,23783.0,23781.0,0.02852954]
[1659235622391,0.08515171,23783.0,23781.0,0.02852954]
[1659235622594,0.00401426,23782.0,23781.0,0.02852954]
[1659235623544,0.40725733,23784.0,23781.0,0.02852954]
[1659235623768,0.08,23782.0,23781.0,0.02852954]
[1659235625240,0.00401426,23783.0,23781.0,0.02852954]
[1659235625728,0.35,23782.0,23781.0,0.02852954]
[1659235625891,0.00916597,23783.0,23781.0,0.02852954]
[1659235626289,0.6,23782.0,23781.0,0.02852954]
[1659235626569,0.00401426,23783.0,23781.0,0.02852954]
[1659235626787,0.05,23782.0,23778.0,0.02852954]
[1659235627001,0.08401426,23783.0,23778.0,0.02852954]
[1659235628163,0.40725733,23784.0,23778.0,0.02852954]
[1659235628401,0.08,23783.0,23778.0,0.02852954]
[1659235629698,0.40725733,23784.0,23778.0,0.02852954]
[1659235629918,0.08,23783.0,23778.0,0.02852954]
[1659235630371,0.08,23783.0,23778.0,0.07852954]
[1659235630612,0.08,23783.0,23778.0,0.32852954]
[1659235630877,0.08,23783.0,23779.0,0.3]
[1659235631381,0.40725733,23784.0,23780.0,0.0306589]
[1659235631631,0.41425258,23785.0,23784.0,0.02852954]
[1659235631862,0.41425258,23785.0,23784.0,1.04591187]
[1659235632101,0.41425258,23785.0,23784.0,1.59932487]
[1659235632350,0.41425258,23785.0,23784.0,1.64262725]
[1659235632575,0.41425258,23785.0,23784.0,1.34262725]
[1659235632815,0.41425258,23785.0,23784.0,1.39262725]
[1659235633264,0.41425258,23785.0,23784.0,0.99262725]
[1659235633485,0.41425258,23785.0,23784.0,0.97998377]
[1659235633929,0.49325258,23785.0,23784.0,0.97998377]
[1659235635267,0.41425258,23785.0,23784.0,1.27998377]
[1659235635506,0.41425258,23785.0,23784.0,0.97998377]
[1659235635946,0.41425258,23785.0,23784.0,1.03198377]
[1659235636224,0.41425258,23785.0,23784.0,1.33198377]
[1659235636448,0.41425258,23785.0,23784.0,1.33170439]
[1659235637311,0.41425258,23785.0,23784.0,1.29234787]
[1659235637813,0.41425258,23785.0,23784.0,1.26168897]
[1659235638028,0.41425258,23785.0,23784.0,1.31368897]
[1659235639372,0.41425258,23785.0,23784.0,0.96168897]
[1659235639604,0.41425258,23785.0,23784.0,1.26168897]
[1659235639834,0.41425258,23785.0,23784.0,1.31168897]
[1659235640065,0.41425258,23785.0,23784.0,1.70253065]
[1659235640734,0.41425258,23785.0,23784.0,1.36268897]
[1659235640954,0.41425258,23785.0,23784.0,1.31268897]
[1659235641202,0.41425258,23785.0,23784.0,1.26168897]
[1659235641445,0.41425258,23785.0,23784.0,1.31168897]
[1659235641888,0.41425258,23785.0,23784.0,1.35968897]
[1659235642110,0.41425258,23785.0,23784.0,1.00968897]
[1659235642326,0.41425258,23785.0,23784.0,1.30968897]
[1659235642851,0.41425258,23785.0,23784.0,1.40968897]
[1659235643722,0.002,23790.0,23789.0,0.07309845]
[1659235643946,0.002,23790.0,23789.0,0.81101468]
[1659235644182,0.002,23790.0,23789.0,1.78732768]
[1659235644401,0.00148449,23790.0,23789.0,1.73732768]
[1659235644622,0.00148449,23790.0,23789.0,1.78732768]
[1659235645587,0.00148449,23790.0,23789.0,1.79997116]
[1659235646014,0.08148449,23790.0,23789.0,1.79997116]
[1659235646224,0.08148449,23790.0,23789.0,1.22707116]
[1659235647144,0.05083794,23790.0,23789.0,1.27707116]
[1659235647375,0.001,23792.0,23791.0,1.12825016]
[1659235647607,0.001,23792.0,23791.0,2.76908249]
[1659235647810,0.001,23792.0,23791.0,1.06566949]
[1659235648050,0.001,23792.0,23791.0,1.2103944]
[1659235648703,0.001,23792.0,23791.0,0.92072433]
[1659235649203,0.001,23792.0,23791.0,0.94897449]
[1659235649405,0.001,23792.0,23791.0,0.73892049]
[1659235649619,0.001,23792.0,23791.0,0.71067033]
[1659235650033,0.001,23792.0,23791.0,0.74067033]
[1659235650740,0.001,23792.0,23791.0,1.04067033]
[1659235650955,0.001,23792.0,23791.0,0.74101845]
[1659235651864,0.001,23792.0,23791.0,0.71101845]
[1659235652081,0.001,23792.0,23791.0,0.74101845]
[1659235652298,0.001,23792.0,23791.0,1.04101845]
[1659235652746,0.001,23792.0,23791.0,1.63481845]
[1659235652976,0.001,23792.0,23791.0,1.33481845]
[1659235653282,0.001,23792.0,23791.0,1.30481845]
[1659235653509,0.001,23792.0,23791.0,1.60481845]
[1659235653723,0.001,23792.0,23791.0,1.30481845]
[1659235653927,0.001,23792.0,23791.0,1.33081845]
[1659235654135,0.001,23792.0,23791.0,1.63081845]
[1659235654398,0.001,23792.0,23791.0,1.65906861]
[1659235655281,0.001,23792.0,23791.0,1.63306861]
[1659235655981,0.001,23792.0,23791.0,1.65906861]
[1659235656197,0.001,23792.0,23791.0,1.70906861]
[1659235656427,0.001,23792.0,23791.0,1.65906861]
[1659235656865,0.001,23792.0,23791.0,1.70906861]
[1659235657076,0.001,23792.0,23791.0,1.73306861]
[1659235657978,0.001,23792.0,23791.0,1.75906861]
[1659235659199,0.001,23792.0,23791.0,1.73306861]
[1659235659838,0.001,23792.0,23791.0,1.75906861]
[1659235660241,0.001,23792.0,23791.0,1.35906861]
[1659235660448,0.001,23792.0,23791.0,1.65906861]
[1659235660690,0.001,23792.0,23791.0,1.35906861]
[1659235661284,0.001,23792.0,23791.0,1.33306861]
[1659235661914,0.001,23792.0,23791.0,1.35906861]
[1659235663749,0.001,23792.0,23791.0,1.33306861]
[1659235663997,0.76195,23799.0,23793.0,0.04484829]
[1659235664212,1.17435904,23799.0,23794.0,0.02825016]
[1659235664437,0.99480904,23799.0,23794.0,0.02825016]
[1659235665754,0.01929,23798.0,23794.0,0.02825016]
[1659235666011,0.00401426,23797.0,23794.0,0.02825016]
[1659235666236,0.01830426,23798.0,23794.0,0.02825016]
[1659235667251,0.01830426,23798.0,23795.0,0.03467316]
[1659235667888,0.09830426,23798.0,23795.0,0.03467316]
[1659235669279,0.01830426,23798.0,23795.0,0.03467316]
[1659235669497,0.01830426,23798.0,23795.0,0.06292332]
[1659235671679,0.02345597,23798.0,23795.0,0.06292332]
[1659235672321,0.01830426,23798.0,23795.0,0.06292332]
[1659235673907,0.09730426,23798.0,23795.0,0.06292332]
[1659235674815,0.10245597,23798.0,23795.0,0.06292332]
[1659235675051,0.05,23797.0,23795.0,0.06292332]
[1659235675292,0.02345597,23798.0,23796.0,0.04484829]
[1659235675293,0.09830426,23798.0,23796.0,0.04484829]
[1659235675504,0.09830426,23798.0,23796.0,0.25486829]
[1659235675737,0.09830426,23798.0,23797.0,0.303413]
[1659235675967,0.17830426,23798.0,23797.0,0.303413]
[1659235676671,0.01830426,23798.0,23797.0,0.303413]
[1659235678062,0.09830426,23798.0,23797.0,0.303413]
[1659235679415,0.01830426,23798.0,23797.0,0.303413]
[1659235679850,0.09830426,23798.0,23797.0,0.303413]
[1659235681662,0.01830426,23798.0,23797.0,0.303413]
[1659235681880,0.09830426,23798.0,23797.0,0.303413]
[1659235682796,0.09830426,23798.0,23793.0,0.210049]
[1659235683006,0.09830426,23798.0,23793.0,0.40725733]
[1659235683658,0.01830426,23798.0,23793.0,0.40725733]
[1659235683878,0.09830426,23798.0,23793.0,0.40725733]
[1659235684323,0.50556159,23798.0,23791.0,0.70725733]
[1659235684782,0.50556159,23798.0,23782.0,0.26996616]
[1659235684783,0.02174984,23795.0,23782.0,0.26996616]
[1659235685014,0.210158,23793.0,23783.0,1.68835733]
[1659235685275,0.210158,23793.0,23784.0,0.43882733]
[1659235685505,0.5953,23794.0,23785.0,1.01067033]
[1659235685732,0.5953,23794.0,23786.0,0.40725733]
[1659235685960,0.079,23793.0,23786.0,0.40725733]
[1659235686643,0.079,23793.0,23787.0,0.303413]
[1659235686872,0.079,23793.0,23788.0,0.71067033]
[1659235687092,0.079,23793.0,23788.0,0.41990081]
[1659235687307,0.5953,23794.0,23788.0,0.41990081]
[1659235687758,0.5953,23794.0,23788.0,0.44815097]
[1659235687983,0.68038969,23794.0,23788.0,0.44815097]
[1659235689357,0.60038969,23794.0,23788.0,0.41990081]
[1659235690011,0.68038969,23794.0,23788.0,0.41990081]
[1659235690692,0.68038969,23794.0,23788.0,0.40725733]
[1659235691331,0.60038969,23794.0,23788.0,0.40725733]
[1659235692008,0.60038969,23794.0,23787.0,0.5883]
[1659235692009,0.40725733,23793.0,23787.0,0.5883]
[1659235694066,0.48625733,23793.0,23787.0,0.5883]
[1659235695229,0.40725733,23793.0,23785.0,0.31258139]
[1659235695470,0.40725733,23793.0,23786.0,0.71067033]
[1659235695721,0.40725733,23793.0,23786.0,0.40725733]
[1659235695946,0.48625733,23793.0,23786.0,0.70725733]
[1659235696865,0.48625733,23793.0,23786.0,0.40725733]
[1659235697314,0.40725733,23793.0,23786.0,0.40725733]
[1659235698978,0.48625733,23793.0,23786.0,0.40725733]
[1659235699203,0.48625733,23793.0,23782.0,0.0918]
[1659235699204,0.63915117,23792.0,23782.0,0.0918]
[1659235699421,0.07174984,23790.0,23782.0,0.40725733]
[1659235699678,0.40725733,23789.0,23780.0,0.3]
[1659235699916,0.630592,23788.0,23780.0,0.70725733]
[1659235700148,0.61745433,23788.0,23780.0,0.70725733]
[1659235700692,0.61745433,23788.0,23780.0,0.75725733]
[1659235700903,0.61745433,23788.0,23781.0,0.3]
[1659235701121,0.40725733,23788.0,23782.0,0.3]
[1659235701331,0.40725733,23788.0,23783.0,0.303413]
[1659235701539,0.40725733,23788.0,23782.0,0.3]
[1659235701994,0.48625733,23788.0,23781.0,0.40725733]
[1659235703325,0.40725733,23788.0,23782.0,0.3]
[1659235703523,0.40725733,23788.0,23781.0,0.40725733]
[1659235703969,0.48625733,23788.0,23781.0,0.40725733]
[1659235704713,0.48625733,23788.0,23782.0,0.3]
[1659235704912,0.48625733,23788.0,23781.0,0.40725733]
[1659235705348,0.48625733,23788.0,23782.0,0.303413]
[1659235705573,0.48625733,23788.0,23781.0,0.40725733]
[1659235705839,0.40725733,23788.0,23782.0,0.3]
[1659235706066,0.48625733,23788.0,23782.0,0.3]
[1659235707181,0.40725733,23788.0,23782.0,0.3]
[1659235708056,0.48625733,23788.0,23782.0,0.3]
[1659235708979,0.4861918,23788.0,23782.0,0.3]
[1659235709183,0.4071918,23788.0,23782.0,0.3]
[1659235709887,0.4861918,23788.0,23782.0,0.3]
[1659235711183,0.4071918,23788.0,23782.0,0.3]
[1659235711393,0.4071918,23788.0,23782.0,0.35]
[1659235711823,0.4071918,23788.0,23782.0,0.3]
[1659235712153,0.4861918,23788.0,23782.0,0.3]
[1659235713124,0.4071918,23788.0,23782.0,0.3]
[1659235713848,0.4861918,23788.0,23782.0,0.3]
[1659235715163,0.40725733,23787.0,23778.0,0.03157]
[1659235715384,0.40725733,23787.0,23779.0,0.70725733]
[1659235716038,0.48625733,23787.0,23779.0,0.70725733]
[1659235716273,0.40725733,23786.0,23779.0,0.70725733]
[1659235716496,0.40725733,23786.0,23780.0,0.303413]
[1659235716686,0.40725733,23786.0,23779.0,0.75725733]
[1659235716920,0.40725733,23786.0,23780.0,0.603413]
[1659235717147,0.40725733,23786.0,23780.0,0.32825016]
[1659235718072,0.48725733,23786.0,23780.0,0.32825016]
[1659235718759,0.48725733,23786.0,23781.0,0.303413]
[1659235718984,0.48725733,23786.0,23780.0,0.32825016]
[1659235719202,0.40725733,23786.0,23780.0,0.32825016]
[1659235720346,0.48625733,23786.0,23780.0,0.32825016]
[1659235721906,0.48625733,23786.0,23781.0,0.303413]
[1659235721907,0.40725733,23786.0,23781.0,0.303413]
[1659235722122,0.40725733,23786.0,23780.0,0.42825016]
[1659235722359,0.48625733,23786.0,23781.0,0.303413]
[1659235722569,0.48625733,23786.0,23780.0,0.32825016]
[1659235722795,0.48625733,23786.0,23781.0,0.303413]
[1659235723026,0.48625733,23786.0,23781.0,0.3]
[1659235723667,0.3713,23788.0,23781.0,0.3]
[1659235723899,0.079,23786.0,23781.0,0.3]
[1659235724185,0.079,23786.0,23782.0,0.303413]
[1659235724382,0.079,23786.0,23781.0,0.35]
[1659235724582,0.079,23786.0,23782.0,0.3]
[1659235724814,0.05,23785.0,23782.0,0.3]
[1659235725048,0.08415171,23786.0,23782.0,0.3]
[1659235725261,0.00515171,23786.0,23781.0,0.3]
[1659235725508,0.40725733,23787.0,23781.0,0.3]
[1659235725933,0.079,23786.0,23780.0,0.58839216]
[1659235726161,0.079,23786.0,23781.0,0.303413]
[1659235726383,0.079,23786.0,23784.0,0.02825016]
[1659235726611,0.08415171,23786.0,23784.0,0.02825016]
[1659235727326,0.00515171,23786.0,23784.0,0.02825016]
[1659235727525,0.3713,23788.0,23784.0,0.02825016]
[1659235727736,0.77855733,23788.0,23784.0,0.02825016]
[1659235727910,0.079,23786.0,23784.0,0.02825016]
[1659235728132,0.079,23786.0,23784.0,0.06292332]
[1659235728336,0.079,23786.0,23784.0,0.02825016]
[1659235729156,0.77855733,23788.0,23784.0,0.02825016]
[1659235730123,0.85755733,23788.0,23784.0,0.02825016]
[1659235730347,0.48625733,23788.0,23784.0,0.02825016]
[1659235731137,0.40725733,23788.0,23784.0,0.02825016]
[1659235731789,0.40725733,23788.0,23785.0,0.03467316]
[1659235732034,0.079,23788.0,23786.0,0.73166316]
[1659235732227,0.07889145,23788.0,23787.0,0.303413]
[1659235732433,0.07889145,23788.0,23786.0,0.02825016]
[1659235733675,0.210143,23793.0,23786.0,0.02825016]
[1659235733891,0.079,23788.0,23786.0,0.02825016]
[1659235735027,0.08415171,23788.0,23786.0,0.01774287]
[1659235735281,0.40725733,23792.0,23786.0,0.01774287]
[1659235736013,0.48625733,23792.0,23786.0,0.01774287]
[1659235736727,0.58391527,23791.0,23786.0,0.01774287]
[1659235737393,0.40725733,23790.0,23781.0,0.5649]
[1659235737771,0.210183,23789.0,23781.0,0.40725733]
[1659235737989,0.40725733,23788.0,23781.0,0.40725733]
[1659235739856,0.46625733,23788.0,23781.0,0.40725733]
[1659235740369,0.46625733,23788.0,23780.0,0.40725733]
[1659235740370,0.61745433,23787.0,23780.0,0.40725733]
[1659235740571,1.27065433,23787.0,23780.0,0.40725733]
[1659235740779,1.17065433,23787.0,23780.0,0.40725733]
[1659235741275,1.17065433,23787.0,23778.0,0.3]
[1659235741276,0.40725733,23786.0,23779.0,0.40725733]
[1659235741487,0.24246813,23785.0,23779.0,0.40725733]
[1659235743368,0.210211,23785.0,23779.0,0.40725733]
[1659235743607,0.40725733,23786.0,23780.0,0.603413]
[1659235743839,0.40725733,23786.0,23780.0,0.3]
[1659235744082,0.047,23785.0,23780.0,0.3]
[1659235744302,0.047,23785.0,23779.0,0.4250002]
[1659235744755,0.047,23785.0,23780.0,0.303413]
[1659235744977,0.047,23785.0,23779.0,0.4250002]
[1659235745201,0.40725733,23786.0,23779.0,0.40725733]
[1659235745867,0.45125733,23786.0,23779.0,0.40725733]
[1659235747724,0.45125733,23786.0,23780.0,0.3]
[1659235747950,0.45125733,23786.0,23779.0,0.69717697]
[1659235748290,0.45125733,23786.0,23779.0,0.40725733]
[1659235749191,0.40725733,23785.0,23778.0,0.70725733]
[1659235749841,0.40725733,23785.0,23779.0,0.3]
[1659235750065,0.41425733,23785.0,23779.0,0.31774287]
[1659235750298,0.40725733,23784.0,23778.0,0.064]
[1659235751263,0.40725733,23784.0,23777.0,0.5448]
[1659235751937,0.45925733,23784.0,23777.0,0.5448]
[1659235752154,0.40725733,23783.0,23777.0,0.5448]
[1659235753387,0.5532,23787.0,23782.0,0.46774287]
[1659235753600,0.5532,23787.0,23782.0,0.01774287]
[1659235753601,0.96045733,23787.0,23782.0,0.01774287]
[1659235754504,0.96045733,23787.0,23782.0,0.31774287]
[1659235754505,0.40725733,23787.0,23782.0,0.31774287]
[1659235756114,0.48225733,23787.0,23782.0,0.31774287]
[1659235756603,0.48214663,23787.0,23782.0,0.31774287]
[1659235756830,0.48214663,23787.0,23782.0,0.38038635]
[1659235757054,0.075,23787.0,23786.0,0.10704116]
[1659235757319,0.58391527,23791.0,23786.0,1.01761436]
[1659235757604,0.58391527,23791.0,23788.0,0.01774287]
[1659235757836,0.58391527,23791.0,23788.0,0.32115587]
[1659235758063,0.66291527,23791.0,23789.0,0.303413]
[1659235758289,0.66291527,23791.0,23788.0,0.01774287]
[1659235758515,0.66806698,23791.0,23788.0,0.01774287]
[1659235758989,0.66291527,23791.0,23788.0,0.01774287]
[1659235759222,0.58391527,23791.0,23788.0,0.01774287]
[1659235759452,0.05,23790.0,23789.0,0.03467316]
[1659235759666,0.58391527,23791.0,23789.0,0.03467316]
[1659235760124,0.66291527,23791.0,23789.0,0.03467316]
[1659235760804,0.66806698,23791.0,23789.0,0.03467316]
[1659235761019,0.66291527,23791.0,23788.0,0.01774287]
[1659235761245,0.05,23790.0,23788.0,0.01774287]
[1659235761491,0.58391527,23791.0,23789.0,0.03467316]
[1659235761712,0.58391527,23791.0,23788.0,0.01774287]
[1659235761935,0.129,23790.0,23788.0,0.01774287]
[1659235762177,0.079,23790.0,23788.0,0.01774287]
[1659235762425,0.079,23790.0,23789.0,0.03467316]
[1659235762658,0.08415171,23790.0,23788.0,0.01774287]
[1659235763354,0.079,23790.0,23788.0,0.01774287]
[1659235763571,0.079,23790.0,23789.0,0.03467316]
[1659235763792,0.58391527,23791.0,23789.0,0.03467316]
[1659235764011,0.079,23790.0,23788.0,0.01774287]
[1659235764699,0.079,23790.0,23789.0,0.03467316]
[1659235765145,0.079,23790.0,23789.0,0.05241603]
[1659235765416,0.58391527,23791.0,23790.0,0.01774287]
[1659235767957,0.66291527,23791.0,23790.0,0.01774287]
[1659235769312,0.58391527,23791.0,23790.0,0.01774287]
[1659235769959,0.66291527,23791.0,23790.0,0.01774287]
[1659235770856,0.66291527,23791.0,23789.0,0.03467316]
[1659235771310,0.58391527,23791.0,23789.0,0.03467316]
[1659235771536,0.58906698,23791.0,23789.0,0.03467316]
[1659235771776,0.58391527,23791.0,23789.0,0.03467316]
[1659235772004,0.05,23790.0,23789.0,0.03467316]
[1659235772238,0.66806698,23791.0,23789.0,0.03467316]
[1659235772461,0.66291527,23791.0,23789.0,0.03467316]
[1659235772681,0.66806698,23791.0,23789.0,0.03467316]
[1659235772942,0.66291527,23791.0,23789.0,0.03467316]
[1659235773129,0.66806698,23791.0,23789.0,0.03467316]
[1659235773357,0.58906698,23791.0,23789.0,0.03467316]
[1659235773582,0.58906698,23791.0,23787.0,0.01774287]
[1659235774059,0.66806698,23791.0,23788.0,0.05241603]
[1659235774320,0.66806698,23791.0,23788.0,0.01774287]
[1659235774772,1.07532431,23791.0,23781.0,0.6198]
[1659235775019,1.07532431,23791.0,23783.0,0.01774287]
[1659235775238,1.63052431,23791.0,23784.0,0.40725733]
[1659235775726,1.55152431,23791.0,23784.0,0.40725733]
[1659235775952,1.59952431,23791.0,23784.0,0.40725733]
[1659235777124,0.40725733,23790.0,23783.0,0.01774287]
[1659235777787,0.40725733,23790.0,23783.0,0.31774287]
[1659235778091,0.48625733,23790.0,23783.0,0.31774287]
[1659235778323,0.40725733,23789.0,23783.0,0.01774287]
[1659235778789,0.40725733,23789.0,23783.0,0.31774287]